bitfinex-derivatives/quotes_SOLF0:USTF0_20250613
["timestamp","ask_amount","ask_price","bid_price","bid_amount"]
[1749813522079,0.048382,144.83,144.82,5.00608079]
[1749813522685,6.9018,144.82,144.8,5.05671327]
[1749813524289,0.048382,144.83,144.8,0.05063248]
[1749813524791,6.9022,144.81,144.8,0.05063248]
[1749813525789,5.05446279,144.83,144.8,0.05063248]
[1749813525790,6.9019,144.82,144.8,0.05063248]
[1749813526391,0.048382,144.83,144.8,0.05063248]
[1749813526392,6.9022,144.81,144.8,0.05063248]
[1749813533793,6.9022,144.81,144.8,3.248e-05]
[1749813538695,6.902,144.82,144.8,3.248e-05]
[1749813539307,6.949882,144.83,144.81,5.00608079]
[1749813539503,0.048382,144.83,144.81,5.00608079]
[1749813539708,36.24,144.9,144.81,5.00608079]
[1749813539911,6.9004,144.85,144.83,5.00608079]
[1749813540309,41.24608079,144.9,144.83,5.00608079]
[1749813540707,0.04902718,144.88,144.85,0.05098702]
[1749813540906,6.8999,144.86,144.85,0.05098702]
[1749813541507,0.04902718,144.88,144.85,5.05706781]
[1749813541708,0.04902718,144.88,144.87,5.00608079]
[1749813541905,36.24,144.93,144.87,5.00608079]
[1749813542107,6.8976,144.91,144.87,11.91108079]
[1749813542405,36.24,144.93,144.87,11.91108079]
[1749813542606,9.59558079,144.95,144.89,5.00608079]
[1749813542811,4.5895,144.95,144.89,5.00608079]
[1749813543007,0.04804392,144.93,144.91,0.04501401]
[1749813543209,6.8973,144.92,144.91,0.04501401]
[1749813543710,0.04804392,144.93,144.91,0.04501401]
[1749813545113,6.897,144.92,144.91,0.04501401]
[1749813548210,6.94474392,144.93,144.91,0.04501401]
[1749813548508,6.94474392,144.93,144.91,5.0510948]
[1749813549018,6.897,144.92,144.91,0.04501401]
[1749813549817,0.04804392,144.93,144.91,0.04501401]
[1749813550419,6.94474392,144.93,144.91,0.04501401]
[1749813551420,0.04804392,144.93,144.91,0.04501401]
[1749813552621,6.897,144.92,144.91,0.04501401]
[1749813554514,6.8983,144.9,144.88,5.00608079]
[1749813554717,5.00608079,144.95,144.88,5.00608079]
[1749813555415,0.05015006,144.93,144.9,0.05263328]
[1749813556828,6.8975,144.91,144.9,0.05263328]
[1749813559714,5.00608079,144.91,144.83,42.9193]
[1749813560017,5.00608079,144.89,144.83,40.5827]
[1749813560223,5.00608079,144.87,144.8,438.78608079]
[1749813560624,6.94797551,144.85,144.82,6.95337534]
[1749813561517,6.9009,144.84,144.82,6.95337534]
[1749813561921,6.9009,144.84,144.82,0.05187534]
[1749813564719,6.9013,144.84,144.82,0.05187534]
[1749813565326,6.9013,144.84,144.82,6.95357534]
[1749813565627,0.04727551,144.85,144.82,5.05795613]
[1749813565830,0.04727551,144.85,144.83,6.901]
[1749813566830,36.16,144.91,144.84,5.00608079]
[1749813567131,36.16,144.91,144.86,5.00608079]
[1749813567426,36.16,144.91,144.87,6.8991]
[1749813568021,6.94774385,144.9,144.88,0.04697573]
[1749813568320,0.04934385,144.9,144.88,0.04697573]
[1749813568521,5.05542464,144.9,144.88,0.04697573]
[1749813568728,5.05542464,144.9,144.82,5.00608079]
[1749813568922,5.00608079,144.88,144.81,36.16]
[1749813569125,5.00608079,144.84,144.78,36.16]
[1749813569321,5.00608079,144.82,144.76,6.9042]
[1749813569521,36.16,144.83,144.75,45.70698079]
[1749813569723,0.04839267,144.8,144.78,0.04736659]
[1749813570130,6.95149267,144.8,144.78,0.04736659]
[1749813571128,6.9032,144.79,144.78,0.04736659]
[1749813573929,6.9049,144.76,144.72,44.76176721]
[1749813574732,8.58176721,144.81,144.73,6.9058]
[1749813574934,0.04733291,144.78,144.76,0.05201046]
[1749813575430,6.9042,144.77,144.76,0.05201046]
[1749813580243,6.906,144.74,144.72,36.18]
[1749813580540,8.58176721,144.78,144.7,4.5049]
[1749813580743,6.9058,144.74,144.71,6.9068]
[1749813581339,0.04866851,144.74,144.72,8.58471497]
[1749813581544,36.18,144.79,144.73,36.12]
[1749813581841,6.9033,144.79,144.75,8.58471497]
[1749813582338,6.9033,144.79,144.76,6.9043]
[1749813582532,6.9474469,144.79,144.76,6.9546512]
[1749813583140,0.0441469,144.79,144.76,0.0503512]
[1749813583446,6.904,144.78,144.76,0.0503512]
[1749813583835,0.0441469,144.79,144.76,6.9549512]
[1749813584238,6.9476469,144.79,144.76,6.9549512]
[1749813585846,6.9038,144.78,144.76,6.9549512]
[1749813586046,0.0441469,144.79,144.76,0.0503512]
[1749813586544,6.9042,144.77,144.76,0.0503512]
[1749813587150,0.0441469,144.79,144.76,6.9549512]
[1749813587347,0.0441469,144.79,144.76,0.0503512]
[1749813587750,0.0441469,144.79,144.77,8.58200401]
[1749813588043,0.0441469,144.79,144.77,15.48700401]
[1749813588247,0.0441469,144.79,144.78,13.8087]
[1749813590049,36.14,144.85,144.78,6.905]
[1749813590345,6.9022,144.82,144.78,6.905]
[1749813590955,0.04947111,144.81,144.79,6.9531607]
[1749813591649,0.04947111,144.81,144.8,6.9027]
[1749813592249,0.04947111,144.81,144.79,6.9532607]
[1749813592855,6.95187111,144.81,144.79,6.9532607]
[1749813593741,0.04947111,144.81,144.79,6.9532607]
[1749813593942,0.04947111,144.81,144.8,6.9027]
[1749813594447,36.14,144.85,144.81,6.902]
[1749813594648,36.14,144.85,144.8,5.00380349]
[1749813595156,6.9019,144.82,144.8,5.00380349]
[1749813595453,6.95134506,144.82,144.8,11.95852084]
[1749813596247,6.95134506,144.82,144.8,6.95471735]
[1749813596447,0.04944506,144.82,144.8,6.95471735]
[1749813596659,5.00380349,144.86,144.8,6.95471735]
[1749813596660,36.14,144.88,144.81,5.00380349]
[1749813596954,397.4,144.9,144.81,43.045]
[1749813597156,41.14380349,144.91,144.85,5.00380349]
[1749813597551,6.8999,144.86,144.85,5.00380349]
[1749813597753,0.04648676,144.87,144.85,5.00380349]
[1749813598153,6.94618676,144.87,144.85,5.00380349]
[1749813598355,0.04648676,144.87,144.85,5.00380349]
[1749813599062,0.04648676,144.87,144.84,6.95508443]
[1749813599453,6.9003,144.85,144.84,6.95508443]
[1749813601561,6.9001,144.86,144.84,6.95508443]
[1749813601748,0.04648676,144.87,144.84,6.95508443]
[1749813602354,6.9003,144.85,144.84,6.95508443]
[1749813604160,0.04648676,144.87,144.84,6.95508443]
[1749813604460,0.04648676,144.87,144.86,11.90880349]
[1749813604663,0.04648676,144.87,144.86,11.90370349]
[1749813605257,0.04648676,144.87,144.86,18.80870349]
[1749813605660,4.6163,144.93,144.87,13.8044]
[1749813605867,6.8982,144.9,144.87,13.8044]
[1749813606665,6.94480681,144.9,144.87,13.85232548]
[1749813606873,6.94480681,144.9,144.88,5.00380349]
[1749813607563,0.04660681,144.9,144.88,5.00380349]
[1749813607961,6.8989,144.88,144.87,6.95292548]
[1749813608162,0.04660681,144.9,144.87,6.95292548]
[1749813608469,6.8987,144.89,144.87,6.95292548]
[1749813608856,0.04660681,144.9,144.88,5.00380349]
[1749813609368,0.04660681,144.9,144.88,11.90880349]
[1749813609665,0.04660681,144.9,144.89,6.8984]
[1749813610464,0.04660681,144.9,144.88,11.90880349]
[1749813610670,0.04660681,144.9,144.88,18.80750349]
[1749813610868,0.04660681,144.9,144.88,11.90880349]
[1749813611267,5.0504103,144.9,144.87,0.04792548]
[1749813611464,6.8989,144.88,144.87,0.04792548]
[1749813613368,5.00380349,144.88,144.83,36.06]
[1749813613567,5.00380349,144.88,144.81,11.90880349]
[1749813614369,6.9006,144.85,144.82,6.9015]
[1749813614575,0.05094787,144.85,144.82,0.05228073]
[1749813614974,0.05094787,144.85,144.83,11.90880349]
[1749813615170,36.06,144.93,144.85,6.905]
[1749813615471,6.898,144.9,144.87,11.90300349]
[1749813616172,0.05188425,144.9,144.87,5.0478856]
[1749813617068,6.94988425,144.9,144.88,6.8987]
[1749813617274,6.94988425,144.9,144.87,5.0478856]
[1749813617473,0.05188425,144.9,144.87,0.04408211]
[1749813617665,6.8989,144.88,144.87,0.04408211]
[1749813617977,0.05188425,144.9,144.87,0.04408211]
[1749813619673,6.8989,144.88,144.87,0.04408211]
[1749813619871,0.05188425,144.9,144.87,0.04408211]
[1749813620474,6.8985,144.89,144.87,0.04408211]
[1749813621175,6.95008425,144.9,144.87,0.04408211]
[1749813621477,6.95008425,144.9,144.87,6.94318211]
[1749813621677,6.8984,144.89,144.87,6.94318211]
[1749813622175,6.8984,144.89,144.87,0.04408211]
[1749813623180,0.05188425,144.9,144.87,6.94338211]
[1749813623181,6.95008425,144.9,144.87,6.94338211]
[1749813623381,0.05188425,144.9,144.87,6.94338211]
[1749813623881,6.95028425,144.9,144.87,6.94338211]
[1749813624281,0.05188425,144.9,144.87,6.94338211]
[1749813625183,0.05188425,144.9,144.87,13.84838211]
[1749813625885,0.05188425,144.9,144.88,6.8989]
[1749813626181,0.05188425,144.9,144.87,11.9528856]
[1749813626381,0.05188425,144.9,144.88,11.90270349]
[1749813628675,6.94988425,144.9,144.88,11.90270349]
[1749813629576,0.05188425,144.9,144.88,11.90270349]
[1749813629771,0.05188425,144.9,144.89,6.8984]
[1749813630080,0.05188425,144.9,144.89,13.8034]
[1749813630471,36.06,144.96,144.91,5.00380349]
[1749813630985,36.06,144.99,144.94,6.896]
[1749813631381,36.06,144.99,144.95,0.04844531]
[1749813631382,0.05013914,144.98,144.95,0.04844531]
[1749813631774,0.05013914,144.98,144.9,6.905]
[1749813631775,5.00380349,144.96,144.9,6.905]
[1749813631975,6.8975,144.91,144.88,9.0797]
[1749813632179,5.00380349,144.94,144.88,2.181]
[1749813632383,5.00380349,144.9,144.83,41.06380349]
[1749813632678,5.65761314,144.93,144.83,36.06]
[1749813632679,5.00380349,144.88,144.83,36.06]
[1749813632884,0.05128551,144.87,144.84,0.05020486]
[1749813633282,6.9007,144.85,144.84,0.05020486]
[1749813636481,6.9001,144.86,144.84,0.05020486]
[1749813636991,0.05128551,144.87,144.84,0.05020486]
[1749813637487,6.9003,144.85,144.84,0.05020486]
[1749813638191,6.9002,144.86,144.84,0.05020486]
[1749813638491,0.05128551,144.87,144.84,0.05020486]
[1749813639190,6.9003,144.85,144.84,0.05020486]
[1749813643791,6.9023,144.81,144.78,2.3089]
[1749813643992,5.00387281,144.81,144.74,40.6097]
[1749813644197,5.00387281,144.81,144.74,4.5897]
[1749813644497,6.904,144.78,144.75,6.9048]
[1749813644695,5.00387281,144.81,144.75,6.9048]
[1749813644898,6.9037,144.78,144.77,0.04429367]
[1749813647996,41.06954014,144.79,144.73,36.02]
[1749813648289,41.06954014,144.79,144.73,42.9258]
[1749813648495,6.9049,144.76,144.73,42.9258]
[1749813648897,6.95759988,144.76,144.73,42.97493605]
[1749813650396,6.9053,144.75,144.73,36.06913605]
[1749813651187,6.9053,144.75,144.73,42.97513605]
[1749813651994,6.9056,144.74,144.73,0.04913605]
[1749813653598,41.04387281,144.75,144.68,2.1743]
[1749813653792,5.00387281,144.73,144.67,52.39387281]
[1749813653996,5.00387281,144.73,144.67,45.48517281]
[1749813654402,6.9073,144.71,144.67,52.39017281]
[1749813654598,0.04421244,144.7,144.68,0.05152602]
[1749813654902,0.04421244,144.7,144.69,6.9079]
[1749813656605,36.04,144.75,144.69,5.00387281]
[1749813656798,41.04387281,144.78,144.71,5.00387281]
[1749813656995,6.9049,144.76,144.71,5.00387281]
[1749813657196,6.9049,144.76,144.71,11.90887281]
[1749813657605,6.95289356,144.75,144.72,6.95886181]
[1749813658006,0.04769356,144.75,144.72,0.05266181]
[1749813658800,6.95319356,144.75,144.72,6.95916181]
[1749813659508,0.04769356,144.75,144.72,6.95916181]
[1749813660708,6.9056,144.74,144.72,6.95916181]
[1749813661505,6.95309356,144.75,144.72,6.95916181]
[1749813662214,6.9056,144.74,144.72,0.05266181]
[1749813663110,6.95309356,144.75,144.72,6.95896181]
[1749813663703,5.00946678,144.73,144.72,0.05266181]
[1749813664013,5.00946678,144.73,144.67,40.4813]
[1749813664306,5.00946678,144.71,144.66,30.0]
[1749813664507,5.00946678,144.69,144.66,30.0]
[1749813664712,6.9089,144.67,144.66,30.0]
[1749813664905,6.9089,144.67,144.66,30.04776695]
[1749813670007,5.01548845,144.68,144.6,6.8648]
[1749813670207,5.01548845,144.65,144.6,6.8648]
[1749813670608,6.9116,144.62,144.6,6.8648]
[1749813671105,6.95629124,144.62,144.6,6.91034918]
[1749813671306,6.95629124,144.62,144.6,4.64504918]
[1749813671616,6.9118,144.61,144.6,0.04554918]
[1749813671913,0.04469124,144.62,144.6,6.95774918]
[1749813672114,6.95629124,144.62,144.6,0.04554918]
[1749813672308,0.04469124,144.62,144.6,0.04554918]
[1749813673217,0.04469124,144.62,144.6,6.95754918]
[1749813674117,6.95609124,144.62,144.6,6.95754918]
[1749813674416,6.95609124,144.62,144.56,404.7025]
[1749813674417,41.04117972,144.61,144.51,41.04117972]
[1749813674612,5.02117972,144.58,144.51,45.76987972]
[1749813674811,5.02117972,144.58,144.52,6.9161]
[1749813675212,5.02117972,144.58,144.51,40.7487]
[1749813675417,0.04609635,144.56,144.52,6.905]
[1749813675608,0.04609635,144.56,144.53,0.04649324]
[1749813675811,6.9147,144.55,144.53,0.04649324]
[1749813676517,0.04609635,144.56,144.53,0.04649324]
[1749813676714,0.04609635,144.56,144.54,5.02117972]
[1749813676918,13.8171,144.68,144.55,36.04]
[1749813677113,5.02117972,144.66,144.6,5.02117972]
[1749813677309,5.02117972,144.66,144.58,5.02117972]
[1749813677809,0.04613808,144.63,144.61,0.04686758]
[1749813678920,6.95713808,144.63,144.61,0.04686758]
[1749813679813,6.95713808,144.63,144.61,6.95866758]
[1749813680323,6.95713808,144.63,144.61,0.04686758]
[1749813680621,6.9113,144.62,144.61,0.04686758]
[1749813681320,6.95713808,144.63,144.61,0.04686758]
[1749813681714,0.04613808,144.63,144.61,0.04686758]
[1749813681920,6.9113,144.62,144.61,0.04686758]
[1749813682219,0.04613808,144.63,144.61,0.04686758]
[1749813683108,0.04613808,144.63,144.61,6.95866758]
[1749813683518,6.95703808,144.63,144.61,6.95866758]
[1749813683719,6.95703808,144.63,144.61,0.04686758]
[1749813684913,0.04613808,144.63,144.61,0.04686758]
[1749813685718,6.95723808,144.63,144.61,0.04686758]
[1749813686114,0.04613808,144.63,144.61,0.04686758]
[1749813686714,36.04,144.67,144.62,15.51165578]
[1749813686906,36.04,144.67,144.62,8.60035578]
[1749813687822,0.04639576,144.66,144.61,0.04686758]
[1749813688021,0.04639576,144.66,144.61,8.64722336]
[1749813688816,0.04639576,144.66,144.62,6.905]
[1749813689424,0.04639576,144.66,144.65,6.9099]
[1749813690721,36.04,144.7,144.67,6.9085]
[1749813690913,36.04,144.73,144.67,8.60035578]
[1749813691412,36.04,144.73,144.67,6.9087]
[1749813691815,6.9077,144.7,144.69,0.0446957]
[1749813692715,6.95534247,144.71,144.69,0.0446957]
[1749813693318,6.9075,144.7,144.69,0.0446957]
[1749813695715,6.95524247,144.71,144.69,0.0446957]
[1749813696210,6.9075,144.7,144.69,0.0446957]
[1749813698125,6.95524247,144.71,144.69,0.0446957]
[1749813699526,0.04794247,144.71,144.69,0.0446957]
[1749813700725,0.04794247,144.71,144.69,6.9521957]
[1749813700928,0.04794247,144.71,144.69,0.0446957]
[1749813701325,0.04794247,144.71,144.7,6.9075]
[1749813702625,0.04794247,144.71,144.69,0.0446957]
[1749813703222,6.95524247,144.71,144.69,0.0446957]
[1749813703929,0.04794247,144.71,144.69,6.9526957]
[1749813704230,0.04794247,144.71,144.69,0.0446957]
[1749813704430,0.04794247,144.71,144.69,6.9525957]
[1749813704618,0.04794247,144.71,144.69,0.0446957]
[1749813704818,0.04794247,144.71,144.7,5.01078085]
[1749813705125,0.04794247,144.71,144.7,11.91828085]
[1749813711426,0.04794247,144.71,144.69,2.2905957]
[1749813711634,0.04794247,144.71,144.69,0.0446957]
[1749813712028,6.9075,144.7,144.69,0.0446957]
[1749813712435,0.04794247,144.71,144.69,0.0446957]
[1749813712932,0.04794247,144.71,144.7,11.91828085]
[1749813713137,35.98,144.76,144.7,5.01078085]
[1749813713635,6.9056,144.74,144.71,6.9067]
[1749813714036,6.9069,144.72,144.71,0.05187095]
[1749813714535,5.01588062,144.67,144.52,12.68584172]
[1749813714743,5.01588062,144.67,144.51,397.84]
[1749813714744,2.2224,144.66,144.58,5.01588062]
[1749813715037,38.2024,144.66,144.58,5.01588062]
[1749813715232,35.98,144.66,144.6,5.01675048]
[1749813715430,0.05053039,144.64,144.62,0.05093036]
[1749813715634,0.05053039,144.64,144.62,5.06768084]
[1749813715835,0.05053039,144.64,144.62,0.05093036]
[1749813716332,6.96113039,144.64,144.62,0.05093036]
[1749813717037,0.05053039,144.64,144.62,0.05093036]
[1749813719441,0.05053039,144.64,144.63,6.9108]
[1749813720137,433.82,144.72,144.62,46.06443132]
[1749813720334,433.82,144.72,144.66,5.01675048]
[1749813720532,6.9078,144.7,144.66,5.01675048]
[1749813720737,6.9078,144.7,144.66,11.92595048]
[1749813721048,6.9078,144.7,144.66,5.01675048]
[1749813721234,6.95358192,144.69,144.67,0.04548611]
[1749813722636,0.04558192,144.69,144.67,0.04548611]
[1749813722841,0.04558192,144.69,144.68,5.01675048]
[1749813723343,0.04558192,144.69,144.68,11.92515048]
[1749813723938,40.5978,144.75,144.68,11.92775048]
[1749813724144,5.01675048,144.74,144.68,6.911]
[1749813724438,6.9088,144.68,144.65,13.8208]
[1749813724737,5.01675048,144.72,144.65,13.8208]
[1749813724939,6.9089,144.68,144.67,0.05129129]
[1749813729435,0.0485881,144.7,144.67,0.05129129]
[1749813729636,0.0485881,144.7,144.69,5.01675048]
[1749813729841,0.0485881,144.7,144.68,6.911]
[1749813730045,0.0485881,144.7,144.69,11.92475048]
[1749813730848,0.0485881,144.7,144.68,6.911]
[1749813731044,6.9563881,144.7,144.67,36.03129129]
[1749813731246,0.0485881,144.7,144.67,36.03129129]
[1749813731442,0.0485881,144.7,144.67,42.94019129]
[1749813731636,6.9562881,144.7,144.67,42.94019129]
[1749813731838,0.0485881,144.7,144.67,36.03129129]
[1749813732449,6.9561881,144.7,144.67,6.96019129]
[1749813734748,0.0485881,144.7,144.67,0.05129129]
[1749813735249,6.9082,144.69,144.67,0.05129129]
[1749813735448,0.0485881,144.7,144.67,0.05129129]
[1749813735947,6.9083,144.69,144.67,0.05129129]
[1749813736150,0.0485881,144.7,144.67,0.05129129]
[1749813737043,6.9084,144.68,144.67,0.05129129]
[1749813740450,6.9103,144.65,144.61,40.97675048]
[1749813740650,6.9103,144.65,144.61,47.88775048]
[1749813741253,6.9103,144.65,144.62,6.911]
[1749813741456,6.95857275,144.65,144.62,6.95762528]
[1749813741749,6.95857275,144.65,144.62,13.86872528]
[1749813742046,6.95857275,144.65,144.62,6.95772528]
[1749813743657,6.95857275,144.65,144.63,6.9108]
[1749813743950,0.04827275,144.65,144.62,0.04662528]
[1749813744149,5.06502323,144.65,144.62,0.04662528]
[1749813744447,6.9108,144.63,144.62,0.04662528]
[1749813744647,41.02502323,144.65,144.58,38.1701]
[1749813744850,40.97675048,144.65,144.58,38.1701]
[1749813745048,6.9119,144.61,144.58,45.083]
[1749813745657,6.95768921,144.61,144.58,45.13455676]
[1749813747257,0.04578921,144.61,144.59,6.9127]
[1749813747461,0.04578921,144.61,144.59,5.01675048]
[1749813747758,6.9097,144.66,144.63,6.9107]
[1749813747959,6.9097,144.66,144.63,11.92745048]
[1749813748758,6.96143362,144.66,144.63,11.9751033]
[1749813749353,6.91,144.65,144.63,0.04765282]
[1749813749656,0.05173362,144.66,144.63,0.04765282]
[1749813749960,6.96143362,144.66,144.63,6.95825282]
[1749813750153,0.05173362,144.66,144.63,0.04765282]
[1749813750651,6.9099,144.65,144.63,0.04765282]
[1749813750954,0.05173362,144.66,144.63,0.04765282]
[1749813751355,6.96133362,144.66,144.63,6.95825282]
[1749813752266,6.9099,144.65,144.63,0.04765282]
[1749813752656,0.05173362,144.66,144.63,0.04765282]
[1749813753363,6.9103,144.65,144.63,0.04765282]
[1749813755361,0.05173362,144.66,144.63,0.04765282]
[1749813755957,6.9102,144.65,144.63,0.04765282]
[1749813756757,5.01675048,144.65,144.61,6.911]
[1749813756961,5.01675048,144.65,144.57,5.01675048]
[1749813757167,5.01675048,144.65,144.58,6.911]
[1749813757365,5.01675048,144.63,144.58,13.8241]
[1749813757865,6.9122,144.61,144.59,0.04630758]
[1749813758063,0.04984821,144.62,144.59,0.04630758]
[1749813758458,6.96144821,144.62,144.59,6.95880758]
[1749813759172,0.04984821,144.62,144.59,5.06305806]
[1749813759361,0.04984821,144.62,144.59,0.04630758]
[1749813759563,0.04984821,144.62,144.59,5.06305806]
[1749813759859,0.04984821,144.62,144.6,6.912]
[1749813760264,0.04984821,144.62,144.61,6.9118]
[1749813760660,0.04984821,144.62,144.59,11.97405806]
[1749813761166,0.04984821,144.62,144.6,6.9119]
[1749813761764,0.04984821,144.62,144.61,6.9118]
[1749813762469,0.04984821,144.62,144.61,11.92855048]
[1749813765468,0.04984821,144.62,144.61,18.83955048]
[1749813765977,35.94,144.67,144.64,6.9103]
[1749813766270,5.01675048,144.69,144.64,6.9103]
[1749813766471,6.9092,144.67,144.64,6.9103]
[1749813766774,5.01675048,144.69,144.64,6.9103]
[1749813767070,6.9094,144.66,144.65,0.04826193]
[1749813769668,6.9093,144.67,144.65,0.04826193]
[1749813770374,6.9094,144.66,144.65,0.04826193]
[1749813770572,0.04884316,144.68,144.65,0.04826193]
[1749813771373,6.9094,144.66,144.65,0.04826193]
[1749813773477,0.04884316,144.68,144.65,0.04826193]
[1749813774480,6.95754316,144.68,144.65,6.95786193]
[1749813775682,6.95754316,144.68,144.66,6.9094]
[1749813775877,0.04884316,144.68,144.66,6.9094]
[1749813776279,0.04884316,144.68,144.65,6.95786193]
[1749813777579,6.95734316,144.68,144.65,6.95786193]
[1749813780683,0.04884316,144.68,144.66,5.01228636]
[1749813781183,0.04884316,144.68,144.67,6.9089]
[1749813781483,0.04884316,144.68,144.65,0.04826193]
[1749813781882,5.01197121,144.67,144.65,0.04826193]
[1749813782291,6.9094,144.66,144.65,0.04826193]
[1749813788903,35.94,144.66,144.6,35.94]
[1749813789102,5.01197121,144.64,144.58,6.911]
[1749813789303,6.9115,144.62,144.59,6.9125]
[1749813789503,6.9115,144.62,144.59,13.8235]
[1749813789705,5.01197121,144.64,144.59,13.8235]
[1749813789905,6.9119,144.61,144.6,0.04588877]
[1749813795503,6.9142,144.56,144.55,6.911]
[1749813795708,5.01197121,144.6,144.55,6.911]
[1749813796409,6.914,144.57,144.55,6.911]
[1749813796604,6.957482,144.57,144.55,6.95791429]
[1749813797304,6.9142,144.56,144.55,6.95791429]
[1749813798109,6.957382,144.57,144.55,6.95791429]
[1749813798807,6.9142,144.56,144.55,6.95791429]
[1749813799013,6.9142,144.56,144.55,0.04691429]
[1749813799309,6.9159,144.53,144.51,35.92]
[1749813799505,5.01197121,144.56,144.51,42.831]
[1749813799709,5.02343191,144.57,144.51,42.831]
[1749813800014,6.9154,144.54,144.51,49.7473]
[1749813800204,6.96389879,144.54,144.51,49.7473]
[1749813800408,6.96389879,144.54,144.51,49.79323028]
[1749813800608,6.9157,144.53,144.51,49.79323028]
[1749813801015,6.9157,144.53,144.51,42.88223028]
[1749813801208,6.9161,144.52,144.51,35.96593028]
[1749813801411,6.9161,144.52,144.51,0.04593028]
[1749813803715,0.04849879,144.54,144.51,0.04593028]
[1749813804617,0.04849879,144.54,144.52,6.9159]
[1749813805022,0.04849879,144.54,144.52,40.94343191]
[1749813805220,35.92,144.6,144.55,6.9143]
[1749813805517,35.92,144.6,144.54,5.02343191]
[1749813805908,35.92,144.6,144.56,6.9142]
[1749813806218,6.96472091,144.59,144.57,0.04695925]
[1749813808018,6.9132,144.58,144.57,0.04695925]
[1749813808419,0.05162091,144.59,144.57,0.04695925]
[1749813808621,6.96452091,144.59,144.57,0.04695925]
[1749813810116,0.05162091,144.59,144.57,0.04695925]
[1749813810317,6.9132,144.58,144.57,0.04695925]
[1749813818331,6.915,144.55,144.53,2.2767]
[1749813818628,35.92,144.6,144.51,11.93963191]
[1749813818629,6.9154,144.54,144.51,11.93963191]
[1749813818826,6.9154,144.54,144.51,11.93443191]
[1749813819223,6.96362347,144.54,144.52,6.9161]
[1749813820021,0.04822347,144.54,144.51,5.07603541]
[1749813820225,0.04822347,144.54,144.53,5.02343191]
[1749813820623,0.04822347,144.54,144.53,11.93903191]
[1749813821521,35.92,144.59,144.54,6.9151]
[1749813822134,35.92,144.59,144.55,5.02343191]
[1749813822633,0.04446969,144.58,144.56,0.04822414]
[1749813822932,6.95776969,144.58,144.56,0.04822414]
[1749813824135,6.95776969,144.58,144.56,6.96232414]
[1749813824838,6.95776969,144.58,144.56,0.04822414]
[1749813826637,6.9137,144.57,144.56,0.04822414]
[1749813828040,6.9137,144.57,144.56,2.414e-05]
[1749813838044,5.01977973,144.55,144.5,6.911]
[1749813838233,35.88,144.54,144.5,6.911]
[1749813838437,6.9164,144.52,144.5,13.828]
[1749813838635,6.9164,144.52,144.5,6.917]
[1749813838947,0.04628906,144.52,144.5,0.04597811]
[1749813839245,6.9166,144.51,144.5,0.04597811]
[1749813841345,6.9166,144.51,144.44,3.39626062]
[1749813841346,5.02500885,144.51,144.45,29.95244568]
[1749813841547,5.02500885,144.51,144.49,21.39460405]
[1749813841749,5.02500885,144.51,144.44,38.0919]
[1749813842243,6.9182,144.48,144.44,38.0919]
[1749813842442,0.04994263,144.47,144.45,0.05097784]
[1749813842748,6.96864263,144.47,144.45,0.05097784]
[1749813843447,6.919,144.46,144.45,0.05097784]
[1749813843657,5.07495148,144.47,144.38,5.02500885]
[1749813843945,35.9,144.5,144.39,6.9221]
[1749813843946,6.9207,144.43,144.39,6.9221]
[1749813844150,5.02500885,144.45,144.39,6.9221]
[1749813844350,5.02500885,144.45,144.38,2.2758]
[1749813844548,0.05100479,144.43,144.4,0.0308448]
[1749813844936,0.05100479,144.43,144.4,6.9524448]
[1749813845141,0.05100479,144.43,144.41,6.911]
[1749813845453,6.97170479,144.43,144.41,6.911]
[1749813846247,0.05100479,144.43,144.4,0.0308448]
[1749813846744,6.9214,144.41,144.4,0.0308448]
[1749813849148,6.921,144.42,144.4,0.0308448]
[1749813851857,0.05100479,144.43,144.4,6.9522448]
[1749813852055,0.05100479,144.43,144.4,0.0308448]
[1749813852261,42.8387,144.47,144.44,6.9198]
[1749813852460,40.94500885,144.5,144.44,11.94480885]
[1749813852655,40.94500885,144.5,144.44,6.9198]
[1749813852856,6.9186,144.47,144.44,6.9198]
[1749813853351,6.96325192,144.47,144.44,6.97235451]
[1749813853562,0.04465192,144.47,144.44,6.97235451]
[1749813853760,0.04465192,144.47,144.45,6.9194]
[1749813854561,0.04465192,144.47,144.45,5.02780713]
[1749813854962,0.04465192,144.47,144.45,11.94710713]
[1749813855156,35.86,144.46,144.44,0.05255451]
[1749813855358,42.7792,144.46,144.44,0.05255451]
[1749813856160,6.9194,144.45,144.44,0.05255451]
[1749813856961,42.7793,144.46,144.44,0.05255451]